fUST/lending_fUST_20240609
["ID","MTS","AMOUNT","RATE_DAILY","PERIOD"]
[328873882,1717938654959,-2333.26,0.000229,3]
[328873883,1717938654970,-2333.26,0.000229,3]
[328873884,1717938654980,-2333.26,0.000229,3]
[328873885,1717938654990,-2333.26,0.000229,3]
[328873886,1717938655001,-2333.26,0.000229,3]
[328873887,1717938655010,-2333.26,0.000229,3]
[328873888,1717938655020,-2333.26,0.000229,3]
[328873889,1717938655031,-2333.26,0.000229,3]
[328873890,1717938655041,-2333.26,0.000229,3]
[328873891,1717938655052,-2333.26,0.000229,3]
[328873892,1717938655063,-2333.26,0.000229,3]
[328873893,1717938655074,-2333.26,0.000229,3]
[328873894,1717938655084,-2333.26,0.000229,3]
[328873895,1717938655094,-166.666666,0.00022944,2]
[328873896,1717938655104,-67760.15930731,0.00022999,2]
[328873897,1717938655114,-2122.73941696,0.00023,2]
[328873898,1717938655124,-1000.0,0.00023,6]
[328873899,1717938655134,-207.00150801,0.00023,2]
[328873900,1717938655144,-154.95351395,0.00023,2]
[328873901,1717938655155,-154.93802479,0.00023,2]
[328873902,1717938655165,-11320.76259866,0.00023,2]
[328873903,1717938655175,-40838.0,0.00023,2]
[328873904,1717938655185,-5038.52235565,0.00023,2]
[328873905,1717938655195,-155.40583866,0.00023,2]
[328873906,1717938655205,-365.96925688,0.00023,2]
[328873907,1717938655215,-4538.92330588,0.00023,15]
[328873908,1717938655227,-1484.0821,0.00023,2]
[328873909,1717938655237,-1484.0821,0.00023,2]
[328873910,1717938655247,-4190.0,0.00023,2]
[328873911,1717938655257,-191.95146075,0.00023013,2]
[328873912,1717938655267,-160.0,0.00023047,7]
[328873913,1717938655277,-160.0,0.00023252,8]
[328873914,1717938655287,-3995.3747351,0.0002344,30]
[328873915,1717938655297,-166.666666,0.00023456,2]
[328873916,1717938655308,-160.0,0.00023458,9]
[328873917,1717938655319,-179928.99518178,0.000235,2]
[328873918,1717938655330,-160.0,0.00023663,10]
[328873919,1717938655341,-161.05770218,0.00023798,2]
[328873920,1717938655352,-240.40498934,0.00023798,2]
[328873921,1717938655362,-157.97543374,0.00023798,2]
[328873922,1717938655372,-173.23814109,0.00023798,2]
[328873923,1717938655383,-2333.26,0.000238,3]
[328873924,1717938655393,-2333.26,0.000238,3]
[328873925,1717938655404,-2333.26,0.000238,3]
[328873926,1717938655413,-2333.26,0.000238,3]
[328873927,1717938655424,-2333.26,0.000238,3]
[328873928,1717938655434,-2333.26,0.000238,3]
[328873929,1717938655444,-2333.26,0.000238,3]
[328873930,1717938655454,-2333.26,0.000238,3]
[328873931,1717938655464,-2333.26,0.000238,3]
[328873932,1717938655474,-2333.26,0.000238,3]
[328873933,1717938655484,-2333.26,0.000238,3]
[328873934,1717938655495,-2333.26,0.000238,3]
[328873935,1717938655504,-2333.26,0.000238,3]
[328873936,1717938655514,-2333.26,0.000238,3]
[328873937,1717938655524,-2333.26,0.000238,3]
[328873938,1717938655534,-2333.26,0.000238,3]
[328873939,1717938655545,-2333.26,0.000238,3]
[328873940,1717938655555,-2333.26,0.000238,3]
[328873941,1717938655566,-2333.26,0.000238,3]
[328873942,1717938655576,-2333.26,0.000238,3]
[328873943,1717938655586,-121850.18687488,0.0002383,2]
[328873944,1717938655595,-24919.81312512,0.0002383,2]
[328873945,1717938655605,-105788.03964023,0.0002385,2]
[328873946,1717938655615,-188744.96035977,0.0002385,2]
[328873947,1717938655625,-160.0,0.00023869,11]
[328873948,1717938655635,-3041.73142947,0.000239,2]
[328873949,1717938655645,-69611.75242142,0.00023969,2]
[328873950,1717938655655,-166.666666,0.00023969,2]
[328873951,1717938655665,-1000.0,0.00024,8]
[328873952,1717938655675,-285.0,0.00024,2]
[328873953,1717938655685,-600.0693176,0.00024,2]
[328873954,1717938655695,-1631.08639723,0.00024,10]
[328873955,1717938655704,-13100.89908152,0.00024,17]
[328873956,1717938655715,-151.45480896,0.00024,3]
[328873957,1717938655725,-2695.23753144,0.00024,2]
[328873958,1717938655736,-10000.0,0.00024,2]
[328873959,1717938655746,-16403.88290975,0.00024,2]
[328873960,1717938655756,-818.74191538,0.00024,2]
[328873961,1717938655766,-160.0,0.00024074,12]
[328873962,1717938655777,-295.0,0.0002408,35]
[328873963,1717938655787,-150.5,0.0002408,35]
[328873964,1717938655796,-342.0,0.0002408,35]
[328873965,1717938655806,-259.0,0.0002408,35]
[328873966,1717938655816,-295.0,0.0002409,35]
[328873967,1717938655826,-150.5,0.0002409,35]
[328873968,1717938655836,-342.0,0.0002409,35]
[328873969,1717938655846,-151.69,0.0002409,35]
[328873970,1717938655855,-259.0,0.0002409,35]
[328873971,1717938655866,-150.5,0.000241,35]
[328873972,1717938655876,-295.0,0.000241,35]
[328873973,1717938655886,-150.5,0.000241,35]
[328873974,1717938655895,-342.0,0.000241,35]
[328873975,1717938655905,-195.85,0.000241,35]
[328873976,1717938655915,-259.0,0.000241,35]
[328873977,1717938655924,-199.9845046,0.0002411,2]
[328873978,1717938655934,-157.0,0.00024126,35]
[328873979,1717938655943,-157.0,0.00024136,35]
[328873980,1717938655953,-157.0,0.00024146,35]
[328873981,1717938655963,-160.0,0.0002428,13]
[328873982,1717938655975,-187.37908327,0.00024288,2]
[328873983,1717938655985,-166.666666,0.00024482,2]
[328873984,1717938655996,-160.0,0.00024485,14]
[328873985,1717938656006,-150.96980604,0.00024485,2]
[328873986,1717938656016,-250.44079184,0.00024485,2]
[328873987,1717938656027,-1000.0,0.000245,2]
[328873988,1717938656037,-3000.0863532,0.000246,15]
[328873989,1717938656047,-500.0,0.00024658,2]
[328873990,1717938656056,-200.0,0.00024658,15]
[328873991,1717938656066,-380.0,0.00024658,2]
[328873992,1717938656077,-200.0,0.00024658,2]
[328873993,1717938656088,-500.0,0.00024658,2]
[328873994,1717938656098,-553.59762929,0.00024658,2]
[328873995,1717938656108,-500.0,0.00024658,2]
[328873996,1717938656118,-500.0,0.00024658,2]
[328873997,1717938656128,-500.0,0.00024658,2]
[328873998,1717938656138,-525.66905854,0.00024658,2]
[328873999,1717938656148,-62127.0160695,0.0002469,2]
[328874000,1717938656158,-160.0,0.0002469,15]
[328874001,1717938656168,-5600.0,0.000247,9]
[328874002,1717938656180,-2333.26,0.000247,3]
[328874003,1717938656190,-2333.26,0.000247,3]
[328874004,1717938656200,-2333.26,0.000247,3]
[328874005,1717938656212,-2333.26,0.000247,3]
[328874006,1717938656227,-2333.26,0.000247,3]
[328874007,1717938656241,-2333.26,0.000247,3]
[328874008,1717938656253,-2333.26,0.000247,3]
[328874009,1717938656266,-2333.26,0.000247,3]
[328874010,1717938656277,-2333.26,0.000247,3]
[328874011,1717938656289,-2333.26,0.000247,3]
[328874012,1717938656299,-2333.26,0.000247,3]
[328874013,1717938656310,-2333.26,0.000247,3]
[328874014,1717938656321,-2333.26,0.000247,3]
[328874015,1717938656332,-2333.26,0.000247,3]
[328874016,1717938656344,-2333.26,0.000247,3]
[328874017,1717938656355,-2333.26,0.000247,3]
[328874018,1717938656366,-2333.26,0.000247,3]
[328874019,1717938656378,-2333.26,0.000247,3]
[328874020,1717938656389,-2333.26,0.000247,3]
[328874021,1717938656400,-2333.26,0.000247,3]
[328874022,1717938656410,-6731.21729386,0.0002488,2]
[328874023,1717938656420,-160.0,0.00024896,16]
[328874024,1717938656430,-301.93961208,0.00024897,4]
[328874025,1717938656441,-9000.0,0.000249,2]
[328874026,1717938656452,-13774.99218348,0.000249,2]
[328874027,1717938656463,-259.0,0.0002495,35]
[328874028,1717938656475,-900.0,0.00024958,7]
[328874029,1717938656485,-900.0,0.00024958,7]
[328874030,1717938656495,-900.0,0.00024958,7]
[328874031,1717938656506,-900.0,0.00024958,7]
[328874032,1717938656517,-900.0,0.00024958,7]
[328874033,1717938656632,-900.0,0.00024958,7]
[328874034,1717938656644,-900.0,0.00024958,7]
[328874035,1717938656654,-900.0,0.00024958,7]
[328874036,1717938656664,-900.0,0.00024958,7]
[328874037,1717938656674,-900.0,0.00024958,7]
[328874038,1717938656684,-900.0,0.00024958,7]
[328874039,1717938656694,-900.0,0.00024958,7]
[328874040,1717938656704,-900.0,0.00024958,7]
[328874041,1717938656714,-900.0,0.00024958,7]
[328874042,1717938656723,-900.0,0.00024958,7]
[328874043,1717938656734,-900.0,0.00024958,7]
[328874044,1717938656744,-900.0,0.00024958,7]
[328874045,1717938656755,-900.0,0.00024958,7]
[328874046,1717938656766,-900.0,0.00024958,7]
[328874047,1717938656779,-900.0,0.00024958,7]
[328874048,1717938656789,-900.0,0.00024958,7]
[328874049,1717938656799,-219.73936291,0.00024958,7]
[328874050,1717938656811,-259.0,0.0002496,35]
[328874051,1717938656821,-259.0,0.0002497,35]
[328874052,1717938656833,-593.58290096,0.00024979,3]
[328874053,1717938656842,-1846.1564584,0.00025,2]
[328874054,1717938656852,-1022.7974307,0.00025,2]
[328874055,1717938656862,-1000.0,0.00025,17]
[328874056,1717938656873,-401.95220466,0.00025,2]
[328874057,1717938656884,-300.0,0.00025,2]
[328874058,1717938656894,-300.0,0.00025,2]
[328874059,1717938656904,-300.0,0.00025,2]
[328874060,1717938656914,-300.0,0.00025,2]
[328874061,1717938656923,-300.0,0.00025,2]
[328874062,1717938656933,-300.0,0.00025,2]
[328874063,1717938656942,-160.0,0.00025,2]
[328874064,1717938656952,-300.0,0.00025,2]
[328874065,1717938656963,-300.0,0.00025,2]
[328874066,1717938656973,-300.0,0.00025,2]
[328874067,1717938656983,-300.0,0.00025,2]
[328874068,1717938656993,-300.0,0.00025,2]
[328874069,1717938657004,-300.0,0.00025,2]
[328874070,1717938657014,-1500.0,0.00025,2]
[328874071,1717938657025,-1500.0,0.00025,2]
[328874072,1717938657035,-1500.0,0.00025,2]
[328874073,1717938657046,-1500.0,0.00025,2]
[328874074,1717938657056,-1500.0,0.00025,2]
[328874075,1717938657068,-1500.0,0.00025,2]
[328874076,1717938657078,-1500.0,0.00025,2]
[328874077,1717938657089,-1500.0,0.00025,2]
[328874078,1717938657099,-1349.33,0.00025,2]
[328874079,1717938657110,-1500.0,0.00025,2]
[328874080,1717938657120,-1500.0,0.00025,2]
[328874081,1717938657131,-600.00000002,0.00025,2]
[328874082,1717938657141,-500.0,0.00025,2]
[328874083,1717938657152,-16189.07076389,0.00025,2]
[328874084,1717938657163,-291.05425982,0.00025,2]
[328874085,1717938657173,-300.0,0.00025,2]
[328874086,1717938657184,-300.0,0.00025,2]
[328874087,1717938657194,-491.12929649,0.00025,2]
[328874088,1717938657204,-809.09371129,0.00025,2]
[328874089,1717938657214,-5085.40780917,0.00025,14]
[328874090,1717938657228,-300.0,0.00025,2]
[328874091,1717938657238,-327.199999,0.00025,2]
[328874092,1717938657248,-428.2,0.00025,2]
[328874093,1717938657258,-428.2,0.00025,2]
[328874094,1717938657270,-300.0,0.00025,2]
[328874095,1717938657280,-4116.04054512,0.00025,10]
[328874096,1717938657290,-1859638.44341042,0.00025,30]
[328874097,1717938657300,-457.60839986,0.00025,2]
[328874098,1717938657313,-2694.0,0.00025,2]
[328874099,1717938657324,-10000.0,0.00025,2]
[328874100,1717938657334,-16403.0,0.00025,2]
[328874101,1717938657344,-817.0,0.00025,2]
[328874102,1717938657355,-560.55646975,0.0002505,7]
[328874103,1717938657366,-500.73558666,0.000251,2]
[328874104,1717938657378,-160.0,0.00025101,17]
[328874105,1717938657388,-544.7639,0.00025159,30]
[328874106,1717938657398,-160.0,0.00025307,18]
[328874107,1717938657407,-264.55398691,0.00025307,5]
[328874108,1717938657417,-603.87922416,0.00025315,7]
[328874109,1717938657428,-181.09333849,0.0002533,2]
[328874110,1717938657437,-304.02414867,0.0002533,2]
[328874111,1717938657447,-68354.15,0.0002533,11]
[328874112,1717938657456,-15364.42928808,0.00025335,2]
[328874113,1717938657467,-154.95351395,0.00025356,2]
[328874114,1717938657476,-295.0,0.0002537,35]
[328874115,1717938657486,-157.0,0.0002537,35]
[328874116,1717938657495,-150.5,0.0002537,35]
[328874117,1717938657505,-295.0,0.0002538,35]
[328874118,1717938657515,-157.0,0.0002538,35]
[328874119,1717938657526,-150.5,0.0002538,35]
[328874120,1717938657536,-16605.30268058,0.00025381,2]
[328874121,1717938657547,-301.07236457,0.00025382,2]
[328874122,1717938657558,-295.0,0.0002539,35]
[328874123,1717938657568,-157.0,0.0002539,35]
[328874124,1717938657580,-150.5,0.0002539,35]
[328874125,1717938657590,-150.5,0.0002545,35]
[328874126,1717938657601,-342.0,0.0002545,35]
[328874127,1717938657611,-150.5,0.0002546,35]
[328874128,1717938657620,-342.0,0.0002546,35]
[328874129,1717938657630,-342.0,0.00025469,35]
[328874130,1717938657640,-90380.0,0.0002547,10]
[328874131,1717938657651,-259.0,0.0002547,35]
[328874132,1717938657661,-74500.0,0.00025473,5]
[328874133,1717938657671,-342.0,0.00025479,35]
[328874134,1717938657681,-259.0,0.0002548,35]
[328874135,1717938657691,-254.85853642,0.00025481,2]
[328874136,1717938657702,-342.0,0.00025489,35]
[328874137,1717938657713,-195.26013925,0.00025496,2]
[328874138,1717938657725,-225.77149859,0.00025497,2]
[328874139,1717938657736,-174.50997204,0.00025498,2]
[328874140,1717938657747,-300.69252663,0.00025498,2]
[328874141,1717938657757,-297.31699671,0.00025498,2]
[328874142,1717938657769,-1462755.29172421,0.000255,60]
[328874143,1717938657780,-2333.26,0.000257,3]
[328874144,1717938657789,-2333.26,0.000257,3]
[328874145,1717938657800,-2333.26,0.000257,3]
[328874146,1717938657810,-2333.26,0.000257,3]
[328874147,1717938657820,-2333.26,0.000257,3]
[328874148,1717938657830,-2333.26,0.000257,3]
[328874149,1717938657840,-2333.26,0.000257,3]
[328874150,1717938657850,-2333.26,0.000257,3]
[328874151,1717938657861,-2333.26,0.000257,3]
[328874152,1717938657871,-2333.26,0.000257,3]
[328874153,1717938657882,-2333.26,0.000257,3]
[328874154,1717938657893,-2333.26,0.000257,3]
[328874155,1717938657903,-2333.26,0.000257,3]
[328874156,1717938657913,-2333.26,0.000257,3]
[328874157,1717938657925,-2333.26,0.000257,3]
[328874158,1717938657936,-2333.26,0.000257,3]
[328874159,1717938657947,-2333.26,0.000257,3]
[328874160,1717938657957,-2333.26,0.000257,3]
[328874161,1717938657969,-2333.26,0.000257,3]
[328874162,1717938657980,-2333.26,0.000257,3]
[328874163,1717938657990,-166.96052789,0.00025741,4]
[328874164,1717938657999,-167.320248,0.00025753,2]
[328874165,1717938658009,-167.320248,0.00025753,12]
[328874166,1717938658019,-167.320248,0.00025753,23]
[328874167,1717938658029,-167.320248,0.00025753,34]
[328874168,1717938658039,-167.320248,0.00025753,44]
[328874169,1717938658049,-167.320248,0.00025753,55]
[328874170,1717938658058,-167.320248,0.00025753,66]
[328874171,1717938658069,-167.320248,0.00025753,77]
[328874172,1717938658081,-167.320248,0.00025753,87]
[328874173,1717938658091,-167.320248,0.00025753,98]
[328874174,1717938658102,-167.320248,0.00025753,109]
[328874175,1717938658113,-167.320248,0.00025753,119]
[328874176,1717938658125,-1207.75844831,0.00025956,30]
[328874177,1717938658135,-2634.31448889,0.00025967,2]
[328874178,1717938658147,-154.98450155,0.00025967,2]
[328874179,1717938658158,-1580.49332327,0.00025967,2]
[328874180,1717938658169,-1000.0,0.00026,26]
[328874181,1717938658180,-4500.0,0.00026,2]
[328874182,1717938658190,-2313.43618336,0.00026019,2]
[328874183,1717938658200,-156.95036892,0.0002606,2]
[328874184,1717938658211,-156.95036892,0.00026065,2]
[328874185,1717938658223,-2313.43618336,0.00026066,2]
[328874186,1717938658235,-291.22730584,0.00026066,2]
[328874187,1717938658247,-156.95036892,0.00026074,2]
[328874188,1717938658260,-1285.1391028,0.000261,2]
[328874189,1717938658271,-1285.1391028,0.00026143,2]
[328874190,1717938658281,-2313.43618336,0.00026156,2]
[328874191,1717938658292,-2313.43618336,0.00026168,2]
[328874192,1717938658303,-1285.1391028,0.00026169,2]
[328874193,1717938658314,-156.95036892,0.00026227,2]
[328874194,1717938658327,-291.22730584,0.00026264,2]
[328874195,1717938658337,-291.22730584,0.00026272,2]
[328874196,1717938658348,-291.22730584,0.00026277,2]
[328874197,1717938658357,-295.0,0.0002628,35]
[328874198,1717938658368,-157.0,0.0002628,35]
[328874199,1717938658381,-295.0,0.0002629,35]
[328874200,1717938658391,-157.0,0.0002629,35]
[328874201,1717938658401,-306.80065111,0.00026298,2]
[328874202,1717938658412,-162.15614264,0.00026324,2]
[328874203,1717938658423,-291.22730584,0.00026345,2]
[328874204,1717938658433,-162.15614264,0.00026364,2]
[328874205,1717938658443,-270.433235,0.00026388,2]
[328874206,1717938658455,-211.20663108,0.00026395,3]
[328874207,1717938658468,-154.51667222,0.000264,2]
[328874208,1717938658478,-291.22730584,0.0002646,2]
[328874209,1717938658488,-7458.94652043,0.0002649,2]
[328874210,1717938658499,-3000.0,0.000265,2]
[328874211,1717938658510,-3000.0,0.0002651,2]
[328874212,1717938658521,-1285.1391028,0.00026513,2]
[328874213,1717938658531,-3000.0,0.0002652,2]
[328874214,1717938658542,-291.22730584,0.00026521,2]
[328874215,1717938658552,-3000.0,0.0002653,2]
[328874216,1717938658561,-3000.0,0.0002654,2]
[328874217,1717938658570,-2313.43618336,0.00026545,2]
[328874218,1717938658580,-3000.0,0.0002655,2]
[328874219,1717938658591,-162.15614264,0.00026557,2]
[328874220,1717938658601,-3000.0,0.0002656,2]
[328874221,1717938658612,-3000.0,0.0002657,2]
[328874222,1717938658621,-3000.0,0.0002658,2]
[328874223,1717938658631,-3000.0,0.0002659,2]
[328874224,1717938658641,-270.98472631,0.000266,2]
[328874225,1717938658650,-3000.0,0.000266,2]
[328874226,1717938658660,-2333.26,0.000266,3]
[328874227,1717938658670,-2333.26,0.000266,3]
[328874228,1717938658681,-2333.26,0.000266,3]
[328874229,1717938658691,-2333.26,0.000266,3]
[328874230,1717938658701,-2333.26,0.000266,3]
[328874231,1717938658711,-2333.26,0.000266,3]
[328874232,1717938658720,-2333.26,0.000266,3]
[328874233,1717938658730,-2333.26,0.000266,3]
[328874234,1717938658740,-2333.26,0.000266,3]
[328874235,1717938658750,-2333.26,0.000266,3]
[328874236,1717938658760,-2333.26,0.000266,3]
[328874237,1717938658770,-2333.26,0.000266,3]
[328874238,1717938658780,-2333.26,0.000266,3]
[328874239,1717938658790,-2333.26,0.000266,3]
[328874240,1717938658800,-2333.26,0.000266,3]
[328874241,1717938658811,-2333.26,0.000266,3]
[328874242,1717938658821,-2333.26,0.000266,3]
[328874243,1717938658831,-2333.26,0.000266,3]
[328874244,1717938658841,-2333.26,0.000266,3]
[328874245,1717938658852,-2333.26,0.000266,3]
[328874246,1717938658863,-3000.0,0.0002661,2]
[328874247,1717938658873,-291.22730584,0.00026618,2]
[328874248,1717938658884,-3000.0,0.0002662,2]
[328874249,1717938658896,-3000.0,0.0002663,2]
[328874250,1717938658906,-3000.0,0.0002664,2]
[328874251,1717938658916,-3000.0,0.0002665,2]
[328874252,1717938658927,-3000.0,0.0002666,2]
[328874253,1717938658938,-3000.0,0.0002667,2]
[328874254,1717938658948,-3000.0,0.0002668,2]
[328874255,1717938658960,-291.22730584,0.00026689,2]
[328874256,1717938658971,-3000.0,0.0002669,2]
[328874257,1717938658982,-291.22730584,0.00026694,2]
[328874258,1717938658991,-2313.43618336,0.00026696,2]
[328874259,1717938659002,-291.22730584,0.00026699,2]
[328874260,1717938659012,-3000.0,0.000267,2]
[328874261,1717938659022,-3000.0,0.0002671,2]
[328874262,1717938659032,-3000.0,0.0002672,2]
[328874263,1717938659042,-3000.0,0.0002673,2]
[328874264,1717938659051,-3000.0,0.0002674,2]
[328874265,1717938659061,-3000.0,0.0002675,2]
[328874266,1717938659070,-3000.0,0.0002676,2]
[328874267,1717938659082,-2313.43618336,0.00026765,2]
[328874268,1717938659091,-90000.0,0.0002677,12]
[328874269,1717938659101,-3000.0,0.0002677,2]
[328874270,1717938659111,-3000.0,0.0002678,2]
[328874271,1717938659120,-156.95036892,0.00026781,2]
[328874272,1717938659129,-3000.0,0.0002679,2]
[328874273,1717938659139,-2313.43618336,0.00026795,2]
[328874274,1717938659149,-3000.0,0.000268,2]
[328874275,1717938659160,-2313.43618336,0.00026809,2]
[328874276,1717938659169,-3000.0,0.0002681,2]
[328874277,1717938659204,-3000.0,0.0002682,2]
[328874278,1717938659215,-2313.43618336,0.00026822,2]
[328874279,1717938659227,-3000.0,0.0002683,2]
[328874280,1717938659239,-3000.0,0.0002684,2]
[328874281,1717938659248,-750.0,0.00026849,2]
[328874282,1717938659260,-3000.0,0.0002685,2]
[328874283,1717938659271,-156.95036892,0.0002685,2]
[328874284,1717938659282,-3000.0,0.0002686,2]
[328874285,1717938659292,-150000.0,0.0002687,11]
[328874286,1717938659303,-291.22730584,0.00026875,2]
[328874287,1717938659312,-156.95036892,0.00026882,2]
[328874288,1717938659323,-2313.43618336,0.00026884,2]
[328874289,1717938659333,-291.22730584,0.0002692,2]
[328874290,1717938659343,-1285.1391028,0.00026927,2]
[328874291,1717938659352,-1285.1391028,0.00026933,2]
[328874292,1717938659363,-2313.43618336,0.00026945,2]
[328874293,1717938659373,-1285.1391028,0.00026979,2]
[328874294,1717938659384,-105000.0,0.0002698,15]
[328874295,1717938659394,-9698.47186445,0.00027,7]
[328874296,1717938659404,-185.01733467,0.00027,2]
[328874297,1717938659414,-109011.69384607,0.00027,30]
[328874298,1717938659423,-1000.0,0.00027,27]
[328874299,1717938659433,-31000.0,0.00027,3]
[328874300,1717938659443,-6050.23759305,0.00027,15]
[328874301,1717938659453,-200.0,0.00027,2]
[328874302,1717938659463,-154.51667222,0.00027045,2]
[328874303,1717938659473,-2313.43618336,0.0002705,2]
[328874304,1717938659483,-156.95036892,0.00027054,2]
[328874305,1717938659492,-154.51667222,0.00027067,2]
[328874306,1717938659503,-151.78907289,0.00027087,2]
[328874307,1717938659514,-1285.1391028,0.00027092,2]
[328874308,1717938659523,-230.49769258,0.00027115,2]
[328874309,1717938659533,-151.0,0.00027115,2]
[328874310,1717938659544,-2313.43618336,0.00027157,2]
[328874311,1717938659554,-3310.2852,0.00027159,30]
[328874312,1717938659564,-291.22730584,0.00027163,2]
[328874313,1717938659574,-291.22730584,0.00027185,2]
[328874314,1717938659584,-1285.1391028,0.00027225,2]
[328874315,1717938659594,-156.95036892,0.00027241,2]
[328874316,1717938659604,-156.95036892,0.00027305,2]
[328874317,1717938659614,-154.51667222,0.00027334,2]
[328874318,1717938659625,-1285.1391028,0.00027353,2]
[328874319,1717938659635,-500.0,0.00027397,2]
[328874320,1717938659646,-500.0,0.00027397,2]
[328874321,1717938659656,-500.0,0.00027397,2]
[328874322,1717938659667,-500.0,0.00027397,2]
[328874323,1717938659677,-500.0,0.00027397,2]
[328874324,1717938659687,-500.0,0.00027397,2]
[328874325,1717938659697,-500.0,0.00027397,2]
[328874326,1717938659708,-500.0,0.00027397,2]
[328874327,1717938659718,-500.0,0.00027397,2]
[328874328,1717938659728,-500.0,0.00027397,2]
[328874329,1717938659739,-500.0,0.00027397,2]
[328874330,1717938659749,-500.0,0.00027397,2]
[328874331,1717938659759,-500.0,0.00027397,2]
[328874332,1717938659770,-500.0,0.00027397,2]
[328874333,1717938659780,-500.0,0.00027397,2]
[328874334,1717938659791,-500.0,0.00027397,2]
[328874335,1717938659801,-500.0,0.00027397,2]
[328874336,1717938659811,-500.0,0.00027397,2]
[328874337,1717938659822,-500.0,0.00027397,2]
[328874338,1717938659832,-500.0,0.00027397,2]
[328874339,1717938659842,-500.0,0.00027397,2]
[328874340,1717938659852,-500.0,0.00027397,2]
[328874341,1717938659863,-500.0,0.00027397,2]
[328874342,1717938659873,-500.0,0.00027397,2]
[328874343,1717938659885,-500.0,0.00027397,2]
[328874344,1717938659895,-536.6472418,0.00027397,2]
[328874345,1717938659904,-500.0,0.00027397,2]
[328874346,1717938659915,-500.0,0.00027397,2]
[328874347,1717938659925,-500.0,0.00027397,2]
[328874348,1717938659935,-500.0,0.00027397,2]
[328874349,1717938659945,-500.0,0.00027397,2]
[328874350,1717938659956,-500.0,0.00027397,2]
[328874351,1717938659966,-500.0,0.00027397,2]
[328874352,1717938659976,-500.0,0.00027397,2]
[328874353,1717938659987,-500.0,0.00027397,2]
[328874354,1717938659997,-500.0,0.00027397,2]
[328874355,1717938660007,-500.0,0.00027397,2]
[328874356,1717938660018,-500.0,0.00027397,2]
[328874357,1717938660028,-500.0,0.00027397,2]
[328874358,1717938660039,-500.0,0.00027397,2]
[328874359,1717938660049,-500.0,0.00027397,2]
[328874360,1717938660060,-500.0,0.00027397,2]
[328874361,1717938660070,-500.0,0.00027397,2]
[328874362,1717938660080,-500.0,0.00027397,2]
[328874363,1717938660091,-500.0,0.00027397,2]
[328874364,1717938660102,-500.0,0.00027397,2]
[328874365,1717938660112,-500.0,0.00027397,2]
[328874366,1717938660122,-550.0,0.00027397,2]
[328874367,1717938660132,-500.0,0.00027397,2]
[328874368,1717938660143,-500.0,0.00027397,2]
[328874369,1717938660153,-500.0,0.00027397,2]
[328874370,1717938660164,-500.0,0.00027397,2]
[328874371,1717938660175,-500.0,0.00027397,2]
[328874372,1717938660186,-570.49638203,0.00027397,2]
[328874373,1717938660197,-500.0,0.00027397,2]
[328874374,1717938660208,-500.0,0.00027397,2]
[328874375,1717938660219,-500.0,0.00027397,2]
[328874376,1717938660236,-601.64130659,0.00027397,2]
[328874377,1717938660248,-200.65698059,0.00027397,2]
[328874378,1717938660259,-331.31696805,0.00027397,10]
[328874379,1717938660269,-500.0,0.00027397,2]
[328874380,1717938660282,-500.0,0.00027397,2]
[328874381,1717938660293,-500.0,0.00027397,2]